[Event "IIFL Wealth 4th Mumbai GM"]
[Site "Mumbai"]
[Date "2019.01.06"]
[Round "8"]
[White "Larmet, Nino"]
[Black "Prajesh R"]
[Result "0-1"]
[ECO "C06"]
[WhiteElo "1835"]
[BlackElo "2102"]
[Annotator "NA"]
[PlyCount "40"]
[EventDate "2018.12.30"]
[EventType "swiss"]
[EventCountry "IND"]
[SourceTitle "playchess.com"]
[Source "ChessBase"]
[SourceQuality "1"]
[TimeControl "40/5400+30:1800+30"]

1. e4 {[%emt 0:00:15]} e6 {[%emt 0:00:48]} 2. d4 {[%emt 0:00:07]} d5 {[%emt 0:00:05]} 3. Nd2 {[%emt 0:00:07]} Nf6 {[%emt 0:02:26]} 4. e5 {[%emt 0:00:08]} Nfd7 {[%emt 0:00:03]} 5. Bd3 {[%emt 0:00:07]} c5 {[%emt 0:00:03]} 6. c3 {[%emt 0:00:04]} Nc6 {[%emt 0:00:05]} 7. Ne2 {[%emt 0:00:27]} cxd4 {[%emt 0:00:05]} 8. cxd4 {[%emt 0:00:12]} f6 {[%emt 0:00:03]} 9. Nf4 {[%emt 0:15:10]} Nxd4 {[%emt 0:00:44]} 10. Qh5+ {[%emt 0:00:26]} Ke7 {[%emt 0:00:09]} 11. Ng6+ {[%emt 0:01:27]} hxg6 {[%emt 0:00:02]} 12. Qxh8 {[%emt 0:00:02]} Nxe5 {[%emt 0:00:15]} 13. Bb1 {[%emt 0:00:47]} Qc7 {[%emt 0:03:19]} 14. Kd1 {[%emt 0:01:52]} Bd7 {[%emt 0:00:54]} 15. Qh3 {[%emt 0:15:16]} Rc8 {[%emt 0:00:28]} 16. Qc3 {[%emt 0:00:42]} Qb6 {[%emt 0:00:04]} 17. Qe3 {[%emt 0:04:40]} Ng4 {[%emt 0:00:18]} 18. Qe1 {[%emt 0:03:39]} Qc5 {[%emt 0:02:01]} 19. Bd3 {[%emt 0:02:03]} Bb5 {[%emt 0:01:01]} 20. Qf1 {[%emt 0:03:26]} Bxd3 {[%emt 0:00:06]} 0-1

[Event "IIFL Wealth 4th Mumbai GM"]
[Site "Mumbai"]
[Date "2019.01.06"]
[Round "8"]
[White "Kishor, Shazzad"]
[Black "Triton, Maxime"]
[Result "1-0"]
[ECO "E63"]
[WhiteElo "1730"]
[BlackElo "1937"]
[Annotator "NA"]
[PlyCount "80"]
[EventDate "2018.12.30"]
[EventType "swiss"]
[EventCountry "IND"]
[SourceTitle "playchess.com"]
[Source "ChessBase"]
[SourceQuality "1"]
[TimeControl "40/5400+30:1800+30"]

1. Nf3 {[%emt 0:12:40]} Nf6 {[%emt 0:00:00]} 2. c4 {[%emt 0:00:25]} d6 {[%emt 0:00:13]} 3. d4 {[%emt 0:00:22]} g6 {[%emt 0:00:07]} 4. g3 {[%emt 0:00:10]} Bg7 {[%emt 0:00:06]} 5. Bg2 {[%emt 0:00:01]} O-O {[%emt 0:00:15]} 6. O-O {[%emt 0:00:02]} Nc6 {[%emt 0:00:11]} 7. Nc3 {[%emt 0:00:09]} a6 {[%emt 0:01:16]} 8. d5 {[%emt 0:01:08]} Na5 {[%emt 0:02:21]} 9. Qd3 {[%emt 0:02:40]} c5 {[%emt 0:00:14]} 10. dxc6 {[%emt 0:02:45]} Nxc6 {[%emt 0:00:02]} 11. Nd5 {[%emt 0:05:28]} Bf5 {[%emt 0:08:19]} 12. Nxf6+ {[%emt 0:00:25]} Bxf6 {[%emt 0:00:01]} 13. e4 {[%emt 0:01:50]} Be6 {[%emt 0:01:22]} 14. Rb1 {[%emt 0:08:55]} Rc8 {[%emt 0:05:34]} 15. b3 {[%emt 0:01:01]} Qa5 {[%emt 0:09:54]} 16. Bb2 {[%emt 0:12:21]} Be5 17. Bd4 Bxd4 {[%emt 0:08:51]} 18. Rb2 {[%emt 0:00:40]} b5 {[%emt 0:07:20]} 19. cxb5 {[%emt 0:03:05]} axb5 {[%emt 0:03:17]} 20. Qd2 {[%emt 0:05:09]} Qxd2 {[%emt 0:08:44]} 21. Rxd2 {[%emt 0:00:22]} f6 {[%emt 0:06:42]} 22. Re1 {[%emt 0:07:40]} Ra8 {[%emt 0:15:49]} 23. Bf1 {[%emt 0:03:25]} Nb4 {[%emt 0:04:03]} 24. Nxd4 {[%emt 0:03:13]} Bd7 {[%emt 0:00:00]} 25. Nxb5 {[%emt 0:05:31]} Bxb5 {[%emt 0:01:35]} 26. Bxb5 {[%emt 0:00:08]} Nxa2 {[%emt 0:00:50]} 27. Bc6 {[%emt 0:00:36]} Ra6 {[%emt 0:03:09]} 28. Bb7 {[%emt 0:00:09]} Nb4 {[%emt 0:02:52]} 29. Bxa6 {[%emt 0:00:30]} Nxa6 {[%emt 0:00:02]} 30. Ra2 {[%emt 0:01:20]} Nc5 {[%emt 0:00:56]} 31. b4 {[%emt 0:01:31]} Nd3 {[%emt 0:00:01]} 32. Rb1 {[%emt 0:00:21]} Rb8 {[%emt 0:00:40]} 33. b5 {[%emt 0:01:54]} Nc5 {[%emt 0:00:07]} 34. b6 {[%emt 0:01:29]} Kf7 {[%emt 0:00:11]} 35. f3 {[%emt 0:03:15]} Ke6 {[%emt 0:00:08]} 36. Kf2 {[%emt 0:06:31]} d5 {[%emt 0:00:38]} 37. exd5+ {[%emt 0:02:13]} Kxd5 {[%emt 0:00:02]} 38. Ra5 {[%emt 0:00:48]} Kd6 {[%emt 0:00:38]} 39. Rd1+ {[%emt 0:00:20]} Kc6 {[%emt 0:00:19]} 40. Rc1 {[%emt 0:00:06]} Kd5 1-0

[Event "IIFL Wealth 4th Mumbai GM"]
[Site "Mumbai"]
[Date "2019.01.06"]
[Round "8"]
[White "Shah, Ram Surat Prasad"]
[Black "Bhasima, Prashan"]
[Result "1/2-1/2"]
[ECO "C44"]
[WhiteElo "1639"]
[BlackElo "1658"]
[Annotator "NA"]
[PlyCount "83"]
[EventDate "2018.12.30"]
[EventType "swiss"]
[EventCountry "IND"]
[SourceTitle "playchess.com"]
[Source "ChessBase"]
[SourceQuality "1"]
[TimeControl "40/5400+30:1800+30"]

1. e4 e5 2. Nf3 Nc6 3. g3 Nf6 4. d3 h6 5. Bg2 d5 6. Nc3 dxe4 7. dxe4 Qxd1+ 8. Kxd1 Bg4 9. Ke1 Bxf3 10. Bxf3 Nd4 11. Bd1 Bb4 12. f3 O-O-O 13. Bd2 Rhe8 14. a3 Ba5 15. Be3 Bxc3+ 16. bxc3 Nb5 17. Bd2 Nd6 18. Be2 a6 19. a4 Nd7 20. Be3 Nb6 21. Bxb6 cxb6 22. Rd1 Kc7 23. Kf2 Nc8 24. Rxd8 Rxd8 25. Rd1 Rxd1 26. Bxd1 Nd6 27. Be2 f6 28. g4 g6 29. h3 g5 30. Ke3 b5 31. axb5 axb5 32. Kd2 Nc4+ 33. Bxc4 bxc4 34. Kc1 Kb6 35. Kb2 Kc5 36. Ka2 b5 37. Ka3 Kc6 38. Kb4 Kb6 39. Ka3 Kc5 40. Ka2 Kc6 41. Ka3 Kc5 42. Ka2 1/2-1/2

[Event "IIFL Wealth 4th Mumbai GM"]
[Site "Mumbai"]
[Date "2019.01.06"]
[Round "8"]
[White "Dhungel, Uttam"]
[Black "Regmi, Shikhar"]
[Result "1/2-1/2"]
[ECO "E91"]
[WhiteElo "1587"]
[BlackElo "1610"]
[Annotator "NA"]
[PlyCount "90"]
[EventDate "2018.12.30"]
[EventType "swiss"]
[EventCountry "IND"]
[SourceTitle "playchess.com"]
[Source "ChessBase"]
[SourceQuality "1"]
[TimeControl "40/5400+30:1800+30"]

1. d4 {[%emt 0:00:00]} Nf6 {[%emt 0:06:53]} 2. c4 {[%emt 0:00:00]} d6 {[%emt 0:00:09]} 3. Nc3 {[%emt 0:00:00]} g6 {[%emt 0:00:08]} 4. Nf3 {[%emt 0:00:21]} Bg7 {[%emt 0:00:37]} 5. e4 {[%emt 0:01:24]} O-O {[%emt 0:00:55]} 6. Be2 {[%emt 0:00:29]} Bg4 {[%emt 0:00:57]} 7. O-O {[%emt 0:00:32]} Nbd7 {[%emt 0:00:36]} 8. h3 {[%emt 0:00:36]} Bh5 {[%emt 0:00:29]} 9. g4 {[%emt 0:06:56]} Nxg4 10. hxg4 Bxg4 {[%emt 0:00:56]} 11. Nh2 {[%emt 0:01:47]} Bh3 {[%emt 0:00:08]} 12. Re1 {[%emt 0:00:20]} f5 {[%emt 0:00:19]} 13. Bf1 {[%emt 0:00:47]} Bxf1 {[%emt 0:00:23]} 14. Kxf1 {[%emt 0:00:41]} e5 {[%emt 0:00:05]} 15. d5 {[%emt 0:00:49]} Qh4 16. Kg2 h5 {[%emt 0:04:23]} 17. b4 {[%emt 0:03:51]} f4 {[%emt 0:00:57]} 18. Bd2 {[%emt 0:08:41]} f3+ {[%emt 0:00:23]} 19. Nxf3 {[%emt 0:00:56]} Qg4+ {[%emt 0:00:07]} 20. Kf1 {[%emt 0:01:03]} Qh3+ {[%emt 0:00:11]} 21. Kg1 {[%emt 0:02:28]} Qxf3 {[%emt 0:00:07]} 22. Qxf3 {[%emt 0:00:37]} Rxf3 {[%emt 0:00:03]} 23. Re3 {[%emt 0:00:21]} Rf7 {[%emt 0:00:09]} 24. Rg3 {[%emt 0:00:32]} Kh7 {[%emt 0:00:09]} 25. Be3 {[%emt 0:00:36]} b6 {[%emt 0:00:10]} 26. Nb5 {[%emt 0:01:15]} Nf6 {[%emt 0:00:24]} 27. Nc3 {[%emt 0:00:52]} a6 {[%emt 0:00:30]} 28. Kf1 {[%emt 0:00:46]} Rc8 {[%emt 0:00:23]} 29. Ke2 {[%emt 0:00:44]} Ng4 {[%emt 0:00:14]} 30. Rag1 {[%emt 0:02:06]} Rf6 {[%emt 0:00:42]} 31. f3 {[%emt 0:01:31]} Nxe3 {[%emt 0:00:24]} 32. Kxe3 {[%emt 0:00:19]} Bh6+ {[%emt 0:00:10]} 33. Kd3 {[%emt 0:00:26]} Rcf8 {[%emt 0:00:11]} 34. Rf1 {[%emt 0:00:27]} R8f7 {[%emt 0:00:38]} 35. a4 {[%emt 0:01:15]} h4 {[%emt 0:00:22]} 36. Rh3 {[%emt 0:00:39]} g5 {[%emt 0:00:02]} 37. Ke2 {[%emt 0:01:29]} Rf4 {[%emt 0:00:21]} 38. Rg1 {[%emt 0:00:20]} Kg6 39. Nd1 Kh5 {[%emt 0:01:49]} 40. Ne3 {[%emt 0:00:52]} Bf8 {[%emt 0:00:28]} 41. Ng4 {[%emt 0:31:01]} a5 {[%emt 0:32:04]} 42. b5 {[%emt 0:02:08]} Be7 {[%emt 0:06:05]} 43. Ne3 {[%emt 0:00:00]} Bf8 {[%emt 0:00:00]} 44. Rg2 {[%emt 0:00:00]} Bh6 {[%emt 0:00:00]} 45. Rg1 {[%emt 0:00:00]} Bf8 1/2-1/2

[Event "IIFL Wealth 4th Mumbai GM"]
[Site "Mumbai"]
[Date "2019.01.06"]
[Round "8"]
[White "Laoussing, Mathis"]
[Black "Kafle, Binod"]
[Result "0-1"]
[ECO "C45"]
[WhiteElo "1438"]
[BlackElo "1191"]
[Annotator "NA"]
[PlyCount "80"]
[EventDate "2018.12.30"]
[EventType "swiss"]
[EventCountry "IND"]
[SourceTitle "playchess.com"]
[Source "ChessBase"]
[SourceQuality "1"]
[TimeControl "40/5400+30:1800+30"]

1. e4 {[%emt 0:00:00]} e5 {[%emt 0:06:14]} 2. Nf3 {[%emt 0:00:42]} Nc6 {[%emt 0:00:35]} 3. d4 {[%emt 0:00:16]} exd4 {[%emt 0:01:01]} 4. Nxd4 {[%emt 0:00:12]} Bc5 {[%emt 0:02:10]} 5. Nxc6 {[%emt 0:01:15]} bxc6 {[%emt 0:00:45]} 6. Bc4 {[%emt 0:00:23]} Qf6 {[%emt 0:01:03]} 7. O-O {[%emt 0:01:38]} Ne7 {[%emt 0:01:27]} 8. Nc3 {[%emt 0:01:04]} O-O {[%emt 0:01:47]} 9. Qh5 {[%emt 0:04:53]} Bd4 {[%emt 0:02:04]} 10. Bd3 {[%emt 0:12:42]} Ng6 {[%emt 0:02:51]} 11. Bd2 {[%emt 0:07:59]} d6 {[%emt 0:03:43]} 12. Qa5 {[%emt 0:18:18]} Bb6 {[%emt 0:02:14]} 13. Qa4 {[%emt 0:00:26]} Bd7 {[%emt 0:00:54]} 14. Ne2 {[%emt 0:02:28]} Ne5 {[%emt 0:02:01]} 15. Bc3 {[%emt 0:01:39]} Qg5 {[%emt 0:02:52]} 16. Bxe5 {[%emt 0:01:56]} dxe5 {[%emt 0:00:53]} 17. Rac1 {[%emt 0:01:52]} h5 {[%emt 0:04:46]} 18. c4 {[%emt 0:01:23]} Bc5 {[%emt 0:01:31]} 19. b4 {[%emt 0:00:53]} Bd4 {[%emt 0:00:10]} 20. Kh1 {[%emt 0:03:02]} Qe7 {[%emt 0:02:15]} 21. c5 {[%emt 0:00:53]} Qh4 {[%emt 0:02:30]} 22. Nxd4 {[%emt 0:04:02]} exd4 {[%emt 0:01:21]} 23. Qa5 {[%emt 0:03:27]} Qf4 {[%emt 0:01:20]} 24. Rc4 {[%emt 0:04:44]} h4 {[%emt 0:06:12]} 25. Rxd4 {[%emt 0:08:12]} Bg4 {[%emt 0:02:57]} 26. Qa3 {[%emt 0:04:11]} h3 {[%emt 0:01:07]} 27. Bc4 {[%emt 0:00:41]} hxg2+ {[%emt 0:01:11]} 28. Kxg2 {[%emt 0:00:25]} Rfd8 {[%emt 0:03:42]} 29. Rxd8+ {[%emt 0:05:34]} Rxd8 {[%emt 0:00:22]} 30. Qe3 {[%emt 0:00:09]} Qf6 {[%emt 0:04:23]} 31. f3 {[%emt 0:02:46]} Bh5 {[%emt 0:06:06]} 32. Rf2 {[%emt 0:00:46]} Qg6+ {[%emt 0:03:03]} 33. Kf1 {[%emt 0:00:25]} Rd1+ {[%emt 0:03:01]} 34. Ke2 {[%emt 0:00:38]} Qg1 {[%emt 0:01:04]} 35. Qc3 {[%emt 0:01:04]} Rc1 {[%emt 0:03:08]} 36. Qd2 {[%emt 0:04:53]} Rxc4 {[%emt 0:01:07]} 37. Ke3 {[%emt 0:00:59]} Qg5+ {[%emt 0:04:19]} 38. f4 {[%emt 0:01:11]} Qg4 {[%emt 0:02:18]} 39. Kd3 {[%emt 0:00:29]} Qe6 {[%emt 0:01:20]} 40. f5 {[%emt 0:00:00]} Qxe4# {[%emt 0:00:00]} 0-1